lending/lending_fUSD_20250316
["ID","MTS","AMOUNT","RATE_DAILY","PERIOD"]
[356261101,1742151387848,-291.02546826,0.00039176,8]
[356261102,1742151387877,-35023.04940234,0.0003937,2]
[356261103,1742151387906,-309.24214936,0.00039471,2]
[356261104,1742151387938,-291.02546826,0.00039866,8]
[356261105,1742151396358,1533.26199205,0.0004,120]
[356261106,1742151397023,-603.56,0.00040047,2]
[356261107,1742151397050,-291.02546826,0.00040555,8]
[356261108,1742151397077,-150.0,0.000409,2]
[356261109,1742151397104,-1090.74413,0.00041,26]
[356261110,1742151397131,-911.42,0.00041096,30]
[356261111,1742151397157,-200.0,0.00041096,60]
[356261112,1742151397184,-291.02546826,0.00041245,9]
[356261113,1742151397214,-291.02546826,0.00041934,9]
[356261114,1742151397244,-603.56,0.00042311,2]
[356261115,1742151397270,-218.57,0.0004249,2]
[356261116,1742151397298,-2000.0,0.000425,4]
[356261117,1742151397324,-1000.0,0.00042596,2]
[356261118,1742151397351,-378.70259992,0.00042623,31]
[356261119,1742151397377,-291.02546826,0.00042624,9]
[356261120,1742151397404,-328.94,0.000427,13]
[356261121,1742151397429,-205.0,0.0004275,2]
[356261122,1742151397456,-20614.16458643,0.000428,120]
[356261123,1742151397484,-516.74,0.00042861,120]
[356261124,1742151397510,-151.3,0.00042878,30]
[356261125,1742151397536,-35023.04940234,0.000429,15]
[356261126,1742151397564,-178.09683232,0.000429,120]
[356261127,1742151397591,-309.24214936,0.000429,28]
[356261128,1742151397617,-1275.48227042,0.000429,2]
[356261129,1742151397644,-53532.57768477,0.000429,15]
[356261130,1742151397670,-681.17431587,0.00042953,9]
[356261131,1742151397699,-218.57,0.0004299,2]
[356261132,1742151397725,-218.57,0.0004299,2]
[356261133,1742151397751,-218.57,0.0004299,2]
[356261134,1742151397778,-218.57,0.0004299,2]
[356261135,1742151397805,-218.57,0.0004299,2]
[356261136,1742151397831,-218.57,0.0004299,2]
[356261137,1742151397859,-218.57,0.0004299,2]
[356261138,1742151397886,-218.57,0.0004299,2]
[356261139,1742151397912,-218.57,0.0004299,2]
[356261140,1742151397939,-218.57,0.0004299,2]
[356261141,1742151397969,-218.57,0.0004299,2]
[356261142,1742151397996,-218.57,0.0004299,2]
[356261143,1742151398024,-218.57,0.0004299,2]
[356261144,1742151398052,-218.57,0.0004299,2]
[356261145,1742151398080,-218.57,0.0004299,2]
[356261146,1742151398108,-218.57,0.0004299,2]
[356261147,1742151398137,-218.57,0.0004299,2]
[356261148,1742151398164,-218.57,0.0004299,2]
[356261149,1742151398192,-218.57,0.0004299,2]
[356261150,1742151398222,-218.57,0.0004299,2]
[356261151,1742151398250,-218.57,0.0004299,2]
[356261152,1742151398278,-393.40284592,0.00042999,31]
[356261153,1742151398306,-500.0,0.00042999,31]
[356261154,1742151398335,-220.54437418,0.00042999,31]
[356261155,1742151398362,-500.0,0.00042999,31]
[356261156,1742151398390,-500.0,0.00042999,31]
[356261157,1742151398417,-500.0,0.00042999,31]
[356261158,1742151398448,-514.60353975,0.00042999,31]
[356261159,1742151398476,-424.60855199,0.00042999,31]
[356261160,1742151398504,-500.0,0.00042999,31]
[356261161,1742151398531,-500.0,0.00042999,31]
[356261162,1742151398560,-500.0,0.00042999,31]
[356261163,1742151398588,-324.0866213,0.00042999,31]
[356261164,1742151398615,-500.0,0.00042999,31]
[356261165,1742151398645,-6983.99336023,0.00043,21]
[356261178,1742152232048,-250.0,0.00019,2]
[356261179,1742152232058,-150.0,0.000195,2]
[356261180,1742152232068,-150.0,0.000204,2]
[356261181,1742152232078,-150.0,0.000209,2]
[356261182,1742152232088,-199.80195128,0.00021,2]
[356261184,1742152232100,-100.19804872,0.00021,2]
[356261186,1742152232110,-325.0,0.000211,2]
[356261187,1742152232119,-350.0,0.00023,2]
[356261188,1742152232128,-400.0,0.00025,2]
[356261189,1742152232138,-325.0,0.000266,2]
[356261190,1742152232148,-9999.99,0.00026849,2]
[356261191,1742152232159,-158.57,0.00026849,2]
[356261192,1742152232169,-450.0,0.00027,2]
[356261193,1742152232178,-195.83,0.00028128,2]
[356261194,1742152232187,-500.0,0.00029,2]
[356261195,1742152232197,-326.54525228,0.00030241,2]
[356261196,1742152232209,-268.8858144,0.00030241,2]
[356261197,1742152232219,-155.0931,0.00030301,10]
[356261198,1742152232229,-17.20156896,0.00030319,2]
[356261199,1742152232241,-482.79843104,0.00030319,2]
[356261200,1742152232251,-993.63641022,0.00030319,25]
[356261201,1742152232263,-867.29858978,0.00030319,25]
[356261202,1742152232273,-181.664,0.00030319,25]
[356261203,1742152232282,-984.52337906,0.00030341,30]
[356261204,1742152232294,-59192.82961561,0.00030341,30]
[356261205,1742152232304,-5355.1827221,0.00030341,2]
[356261206,1742152232314,-15092.12043145,0.00030341,120]
[356261207,1742152232325,-4626.35638591,0.00030341,120]
[356261208,1742152232339,-926.10022701,0.00030341,120]
[356261209,1742152232350,-2246.1,0.00030341,120]
[356261210,1742152232362,-1425.56200764,0.00030341,120]
[356261211,1742152232373,-518.94,0.00030341,120]
[356261212,1742152232384,-10810.29980152,0.00030341,120]
[356261213,1742152232393,-207.81005535,0.000309,5]
[356261214,1742152232403,-195.83,0.00030941,2]
[356261215,1742152232412,-550.0,0.00031,2]
[356261216,1742152232422,-207.81005525,0.00032076,6]
[356261217,1742152232431,-532.66,0.00032867,2]
[356261218,1742152232441,-600.0,0.00033,2]
[356261219,1742152232451,-207.81005525,0.00033253,6]
[356261220,1742152232460,-500.0,0.00033262,2]
[356261221,1742152232469,-375.2590649,0.00033301,10]
[356261222,1742152232482,-195.83,0.00033753,2]
[356261223,1742152232492,-207.81005525,0.00034429,6]
[356261224,1742152232501,-150.0,0.00034664,2]
[356261225,1742152232511,-9577.79814074,0.00034705,2]
[356261226,1742152232523,-427.97595981,0.00034705,2]
[356261227,1742152232539,-1391.08289891,0.00034705,2]
[356261229,1742152232551,-12503.14300054,0.00034705,2]
[356261231,1742152232560,-158.57,0.00034716,2]
[356261233,1742152232570,-4031.48,0.00034739,2]
[356261235,1742152232580,-157.86,0.000348,31]
[356261237,1742152232589,-1078.18,0.00035029,120]
[356261239,1742152232598,-150.0,0.0003516,7]
[356261241,1742152232607,-2631.89,0.0003536,2]
[356261243,1742152232617,-207.81005525,0.00035606,7]
[356261245,1742152232627,-595.43106666,0.00036167,2]
[356261247,1742152232637,-195.83,0.00036566,2]
[356261248,1742152232646,-207.81005525,0.00036782,7]
[356261251,1742152232656,-500.0,0.00037178,2]
[356261254,1742152232666,-207.81005525,0.00037959,8]
[356261257,1742152232675,-200.0,0.00038278,2]
[356261259,1742152232685,-1852.42,0.00038278,2]
[356261261,1742152232695,-157.86,0.000383,31]
[356261263,1742152232704,-157.86,0.000383,31]
[356261265,1742152232713,-176.63,0.0003844,2]
[356261267,1742152232723,-500.0,0.00038768,2]
[356261269,1742152232732,-4682.63029433,0.0003878,2]
[356261272,1742152232744,-370.04022624,0.0003878,2]
[356261624,1742152237987,-257.26787767,0.0003878,2]
[356261625,1742152237999,-725.91160176,0.0003878,2]
[356261626,1742152238011,-162.97,0.00038835,120]
[356261627,1742152238022,-1114.42,0.00038955,2]
[356261628,1742152238031,-207.81005525,0.00039135,8]
[356261629,1742152238041,-19018.47841055,0.00039314,2]
[356261630,1742152238052,-2115.47849276,0.00039314,2]
[356261631,1742152238065,-949.57309669,0.00039314,2]
[356261632,1742152238075,-200.0,0.00039334,2]
[356261633,1742152238084,-195.83,0.00039379,2]
[356261634,1742152238094,-1078.18,0.00039408,120]
[356261635,1742152238104,-500.0,0.00039547,2]
[356261636,1742152238113,-250.31,0.00039936,120]
[356261637,1742152238123,-429.00690327,0.00040027,2]
[356261638,1742152238135,-163.99309673,0.00040027,2]
[356261639,1742152238146,-250.0,0.0004024,2]
[356261640,1742152238156,-207.81005525,0.00040312,8]
[356261641,1742152238166,-190.72,0.00040378,2]
[356261642,1742152238176,-77.15684802,0.00041488,9]
[356261643,1742152238188,-130.65320723,0.00041488,9]
[356261644,1742152238198,-157.86,0.000418,31]
[356261645,1742152238207,-157.86,0.000418,31]
[356261646,1742152238216,-638.20296066,0.00042,15]
[356261647,1742152238228,-1924.2177741,0.00042,15]
[356261648,1742152238239,-3891.95218184,0.00042,15]
[356261649,1742152238251,-1283.475,0.00042,15]
[356261650,1742152238262,-2262.1520834,0.00042,15]
[356261651,1742152238271,-15765.05591661,0.00042,120]
[356261652,1742152238283,-2130.85500964,0.00042,120]
[356261653,1742152238294,-3366.08943692,0.00042,120]
[356261654,1742152238306,-484.25820093,0.00042,120]
[356261655,1742152238317,-1890.54913191,0.00042,120]
[356261656,1742152238328,-13580.98115534,0.00042,120]
[356261667,1742152240139,-1257.4008,0.00042,120]
[356261668,1742152240151,-557.79275677,0.00042,120]
[356261669,1742152240163,-667.67285361,0.00042,120]
[356261670,1742152240193,-304.03316476,0.00042,120]
[356261671,1742152240204,-4410.27150738,0.00042,120]
[356261672,1742152240249,-615.08089194,0.00042,120]
[356261673,1742152240261,-649.84901329,0.00042,120]
[356261674,1742152240272,-844.34473846,0.00042,120]
[356261675,1742152240283,-927.740244,0.00042,120]
[356261676,1742152240305,-1021.095,0.00042,120]
[356261677,1742152240316,-483.21795857,0.00042,120]
[356261678,1742152240327,-957.52029218,0.00042,120]
[356261679,1742152240339,-520.02771299,0.00042,120]
[356261680,1742152240351,-391.03389044,0.00042,120]
[356261681,1742152240362,-720.67344272,0.00042,120]
[356261682,1742152240374,-349.49853764,0.00042,120]
[356261683,1742152240386,-1659.01449269,0.00042,120]
[356261684,1742152240415,-11098.2424816,0.00042,120]
[356261685,1742152240426,-595.43106666,0.00042092,2]
[356261686,1742152240436,-195.83,0.00042192,2]
[356261687,1742152240446,-1363.72068552,0.00042348,2]
[356261688,1742152240459,-617.80931448,0.00042348,2]
[356261689,1742152240469,-4346.50916536,0.00042348,2]
[356261690,1742152240484,-2104.79837284,0.00042348,2]
[356261691,1742152240496,-8794.5724618,0.00042348,2]
[356261692,1742152240506,-158.57,0.00042583,2]
[356261693,1742152240515,-207.81005525,0.00042665,9]
[356261694,1742152240527,-840.73843364,0.0004289,15]
[356261695,1742152240536,-339.98579999,0.0004289,2]
[356261696,1742152240546,-817.4434,0.0004289,120]
[356261697,1742152240557,-339.98579999,0.00042895,2]
[356261698,1742152240567,-400.50452733,0.000429,2]
[356261699,1742152240576,-339.98579999,0.000429,2]
[356261700,1742152240586,-178.09683232,0.000429,120]
[356261701,1742152240596,-316.81574,0.0004299,73]
[356261702,1742152240606,-13447.52163696,0.0004299,3]
[356261703,1742152240617,-620.59139224,0.0004299,3]
[356261704,1742152240629,-826.2641336,0.0004299,3]
[356261705,1742152240640,-463.30425873,0.0004299,3]
[356261748,1742152243099,-238561.41844277,0.0004299,3]
[356261749,1742152243111,-2581.9170407,0.0004299,3]
[356261751,1742152243121,-1686.49098615,0.0004299,3]
[356261752,1742152243152,-140919.11842018,0.0004299,3]
[356261776,1742152246756,-95296.78007267,0.0004299,3]
[356261777,1742152246766,-687.76,0.00042999,7]
[356261778,1742152246775,-800.38,0.00042999,120]
[356261779,1742152246785,-800.38,0.00042999,120]
[356261780,1742152246795,-800.38,0.00042999,120]
[356261781,1742152246805,-800.38,0.00042999,120]
[356261782,1742152246814,-800.38,0.00042999,120]
[356261783,1742152246824,-800.38,0.00042999,120]
[356261784,1742152246833,-800.38,0.00042999,120]
[356261785,1742152246842,-800.38,0.00042999,120]
[356261786,1742152246851,-800.38,0.00042999,120]
[356261787,1742152246860,-800.38,0.00042999,120]
[356261788,1742152246870,-800.38,0.00042999,120]
[356261789,1742152246880,-800.38,0.00042999,120]
[356261790,1742152246889,-800.38,0.00042999,120]
[356261791,1742152246899,-800.38,0.00042999,120]
[356261792,1742152246908,-800.38,0.00042999,120]
[356261793,1742152246918,-800.38,0.00042999,120]
[356261794,1742152246928,-800.38,0.00042999,120]
[356261795,1742152246938,-800.38,0.00042999,120]
[356261796,1742152246948,-800.38,0.00042999,120]
[356261797,1742152246958,-800.38,0.00042999,120]
[356261798,1742152246968,-800.38,0.00042999,120]
[356261799,1742152246978,-800.38,0.00042999,120]
[356261800,1742152246988,-800.38,0.00042999,120]
[356261801,1742152246998,-800.38503233,0.00042999,120]
[356261802,1742152247007,-94335.15855413,0.00043,21]
[356261803,1742152247016,-1000.0,0.00043,90]
[356261804,1742152247027,-332981.03226734,0.00043,120]
[356261805,1742152247039,-5013.44467986,0.00043,120]
[356261806,1742152247050,-772.82854254,0.00043,120]
[356261807,1742152247062,-1360.84995,0.00043,120]
[356261808,1742152247075,-1386.6,0.00043,120]
[356261809,1742152247133,-153.35167616,0.00043,120]
[356261810,1742152247145,-784.65,0.00043,120]
[356261811,1742152249667,-0.19059873,0.00043,120]
[356261812,1742152249745,-5683.7881209,0.00043,120]
[356261813,1742152249757,-52183.49804259,0.00043,120]
[356261814,1742152249769,-2212.500005,0.00043,120]
[356261815,1742152249780,-6204.9484776,0.00043,120]
[356261816,1742152249791,-15745.26846977,0.00043,120]
[356261817,1742152249803,-15610.0,0.00043,120]
[356261818,1742152249814,-14836.25,0.00043,120]
[356261819,1742152249825,-974.9999998,0.00043,120]
[356261820,1742152249841,-4767.20623925,0.00043,120]
[356261821,1742152249917,-83532.80262713,0.00043,120]
[356261822,1742152249930,-669.385,0.00043,120]
[356261859,1742153432248,-150.0,9.999e-05,2]
[356261860,1742153432257,-150.0,0.0001,2]
[356261861,1742153432266,-23742.61756843,0.0001,2]
[356261862,1742153432459,-42017.49434322,0.0001,2]
[356261863,1742153432471,-7135.35274793,0.0001,2]
[356261864,1742153432515,-8293.36643923,0.0001,2]
[356261865,1742153432527,-849.04253051,0.0001,2]
[356261999,1742153438196,-786.08,0.0001,2]
[356262000,1742153438251,-2835.07721257,0.0001,2]
[356262001,1742153438263,-1199.70439108,0.0001,2]
[356262002,1742153438305,-1094.31780269,0.0001,2]
[356262003,1742153438316,-6224.572055,0.0001,2]
[356262004,1742153438327,-9547.37304,0.0001,2]
[356262005,1742153438360,-9353.73999988,0.0001,2]
[356262006,1742153438371,-20453.81196134,0.0001,2]
[356262007,1742153438381,-31185.5504714,0.0001,2]
[356262074,1742153440310,-13888.21876016,0.0001,2]
[356262075,1742153440420,-242566.95577015,0.0001,2]
[356262076,1742153440432,-4437.50341264,0.0001,2]
[356262077,1742153440447,-1338.28977022,0.0001,2]
[356262078,1742153440459,-3952.83969791,0.0001,2]
[356262079,1742153440475,-963.81767726,0.0001,2]
[356262080,1742153440583,-503.12620883,0.0001,2]
[356262081,1742153440639,-676.7878688,0.0001,2]
[356262082,1742153440696,-2049.05889236,0.0001,2]
[356262162,1742153445352,-181325.8120158,0.0001,2]
[356262163,1742153445365,-438.60309297,0.0001,2]
[356262164,1742153445376,-5549.35374119,0.0001,2]
[356262165,1742153445388,-996.59224999,0.0001,2]
[356262166,1742153445400,-4304.3,0.0001,2]
[356262167,1742153445411,-890.58,0.0001,2]
[356262168,1742153445423,-41294.69998397,0.0001,2]
[356262173,1742153446209,-447.87525072,0.0001,2]
[356262174,1742153446266,-423236.47735848,0.0001,2]
[356262175,1742153446279,-329999.99999972,0.0001,2]
[356262176,1742153446291,-376.69440529,0.0001,2]
[356262177,1742153446322,-476.87996005,0.0001,2]
[356262178,1742153446333,-2234.39594878,0.0001,2]
[356262179,1742153446346,-2982.8951,0.0001,2]
[356262180,1742153446378,-65966.33894,0.0001,2]
[356262181,1742153446390,-24984.996,0.0001,2]
[356262183,1742153446541,-1953.4675793,0.0001,2]
[356263004,1742153624806,-164.45,9.99e-05,2]
[356263005,1742153644057,-150.0,9.99e-05,2]
[356263007,1742153723050,-163.33020746,9.99e-05,2]
[356263008,1742153762266,-46.30896384,9.99e-05,2]
[356263009,1742153762291,-103.69103616,9.992e-05,2]
[356263011,1742153912128,451.57863209,9.8e-05,2]
[356263012,1742153912153,1549.44936791,9.8e-05,2]
[356263013,1742153912185,172.977,9.8e-05,2]
[356263014,1742153942381,-46.30896384,9.992e-05,2]
[356263015,1742153942408,-103.69103616,9.994e-05,2]
[356263016,1742153944604,-386.66979254,9.994e-05,2]
[356263017,1742154003800,-9.6391713,9.994e-05,2]
[356263018,1742154003828,-140.3608287,9.999e-05,2]
[356263019,1742154032475,-9.6391713,9.999e-05,2]
[356263020,1742154032500,-140.3608287,0.0001,2]
[356263021,1742154125141,-150.0,9.999e-05,2]
[356263024,1742154532636,-11000.0,0.0001,2]
[356263025,1742154533591,-273.5267,0.0001,2]
[356263026,1742154550620,-10000.0,0.0001,2]
[356263027,1742154551568,-10000.0,0.0001,2]
[356263028,1742154552536,-10000.0,0.0001,2]
[356263029,1742154553012,-10000.0,0.0001,2]
[356263030,1742154553412,-10000.0,0.0001,2]
[356263031,1742154553819,-10000.0,0.0001,2]
[356263032,1742154554327,-10000.0,0.0001,2]
[356263033,1742154554785,-10000.0,0.0001,2]
[356263034,1742154556374,-10000.0,0.0001,2]
[356263035,1742154557361,-10000.0,0.0001,2]
[356263036,1742154580178,-285.84460894,9.999e-05,2]
[356263037,1742154580201,-4714.15539106,0.0001,2]
[356263038,1742154583834,-1672.0,0.0001,2]
[356263041,1742154631479,-1997.21734795,0.0001,2]
[356263042,1742154631491,-778.82933618,0.0001,2]
[356263043,1742154631533,-1036.92088886,0.0001,2]
[356263044,1742154631641,-712.02367317,0.0001,2]
[356263045,1742154631697,-6815.34,0.0001,2]
[356263046,1742154631708,-344944.49696907,0.0001,2]
[356263047,1742154631719,-1163.30639126,0.0001,2]
[356263048,1742154631730,-1184.17281378,0.0001,2]
[356263049,1742154631742,-645.98250501,0.0001,2]
[356263051,1742154631753,-1866.83619547,0.0001,2]
[356263053,1742154631764,-79640.13276916,0.0001,2]
[356263284,1742154637421,-1894.57085935,0.0001,2]
[356263285,1742154637430,-556509.11846986,0.0001,2]
[356263287,1742154637439,-264.01311,0.0001,2]
[356263289,1742154637449,-2800.0,0.0001,3]
[356263291,1742154637458,-150.0,0.0001,2]
[356263293,1742154637467,-158.78591466,0.00010899,2]
[356263295,1742154637476,-150.0,0.00010986,2]
[356263296,1742154637485,-500.0,0.00010989,2]
[356263298,1742154637495,-500.0,0.00011,2]
[356263300,1742154637504,-150.0,0.00011,2]
[356263302,1742154637513,-150.0,0.00011,2]
[356263304,1742154637523,-264.01312,0.00015,2]
[356263305,1742154637532,-1235.20986042,0.0001527,2]
[356263307,1742154637541,-153.87,0.000186,2]
[356263309,1742154637551,-1350.93,0.00018656,2]
[356263311,1742154637560,-250.0,0.00019,2]
[356263313,1742154637569,-264.01312,0.0002,2]
[356263314,1742154637579,-250.0,0.00020605,2]
[356263316,1742154637588,-198.09,0.00020711,2]
[356263318,1742154637598,-1350.93,0.00020919,2]
[356263319,1742154637607,-1062.01,0.00021049,2]
[356263321,1742154637617,-205.41712199,0.000211,2]
[356263323,1742154637626,-205.41712184,0.000211,2]
[356263325,1742154637635,-205.41712184,0.000211,2]
[356263326,1742154637645,-205.41712184,0.000211,2]
[356263328,1742154637658,-205.41712184,0.000211,2]
[356263330,1742154637667,-162.97,0.00021107,30]
[356263332,1742154637677,-205.41712184,0.00021163,2]
[356263334,1742154637686,-200.0,0.00021177,2]
[356263335,1742154637695,-646.9,0.00021343,2]
[356263337,1742154637705,-2000.0,0.00021372,2]
[356263339,1742154637714,-880.9,0.0002179,2]
[356263341,1742154637723,-196.12,0.0002179,2]
[356263343,1742154637732,-176.63,0.00022071,2]
[356263344,1742154637741,-200.0,0.00022281,2]
[356263346,1742154637751,-164.96,0.00022349,2]
[356263348,1742154637760,-200.0,0.00022378,2]
[356263350,1742154637770,-354.74,0.0002257,2]
[356263352,1742154637779,-171.53,0.00022866,2]
[356263354,1742154637789,-196.12,0.00022879,2]
[356263356,1742154637798,-1350.93,0.00023183,2]
[356263357,1742154637807,-205.41712184,0.00023216,3]
[356263359,1742154637817,-7231.73,0.000233,2]
[356263361,1742154637826,-646.9,0.00024011,2]
[356263363,1742154637836,-5575.84,0.00024344,2]
[356263365,1742154637845,-214.26886814,0.00024611,2]
[356263367,1742154637854,-171.53,0.00024753,2]
[356263368,1742154637864,-150.32497004,0.00024773,2]
[356263370,1742154637873,-229838.036149,0.000248,3]
[356263372,1742154637883,-152358.764326,0.000249,3]
[356263374,1742154637892,-5700.0,0.000249,9]
[356263391,1742154638067,-264.01311,0.00025,2]
[356263393,1742154638080,-205.41712184,0.00025268,4]
[356263394,1742154638090,-1350.93,0.00025447,2]
[356263396,1742154638100,-176.63,0.00025749,2]
[356263398,1742154638112,-183.89,0.00025848,2]
[356263400,1742154638121,-500.0,0.00025945,2]
[356263402,1742154638131,-171.53,0.0002664,2]
[356263404,1742154638141,-646.9,0.00026679,120]
[356263406,1742154638151,-7086.4541547,0.00026782,3]
[356263408,1742154638160,-23900.0,0.00026792,2]
[356263410,1742154638170,-166.34,0.00026849,2]
[356263412,1742154638179,-164.89,0.00026849,2]
[356263413,1742154638188,-155.56858531,0.00027,2]
[356263415,1742154638198,-205.41712184,0.00027321,4]
[356263417,1742154638207,-1350.93,0.00027711,2]
[356263419,1742154638216,-3543.22707735,0.00028562,3]
[356263421,1742154638226,-646.9,0.00029347,120]
[356263423,1742154638236,-840.37700376,0.00029362,2]
[356263425,1742154638247,-205.41712184,0.00029374,5]
[356263426,1742154638261,-176.63,0.00029428,2]
[356263428,1742154638270,-1062.01,0.00029468,2]
[356263430,1742154638279,-8600.0,0.000296,10]
[356263432,1742154638290,-11500.0,0.000297,10]
[356263434,1742154638300,-7231.73,0.000298,2]
[356263436,1742154638309,-14400.0,0.000298,10]
[356263438,1742154638318,-538.35,0.00029825,2]
[356263440,1742154638329,-2800.0,0.000299,10]
[356263442,1742154638338,-2000.0,0.00029907,4]
[356263443,1742154638347,-1350.93,0.00029975,2]
[356263445,1742154638356,-3543.22707735,0.0002999,3]
[356263447,1742154638365,-150.32303518,0.0003,15]
[356263449,1742154638374,-264.01312,0.0003,2]
[356263451,1742154638384,-150.0,0.00030137,2]
[356263453,1742154638394,-200.0,0.00030137,60]
[356263455,1742154638404,-10300.40691864,0.00030263,2]
[356263456,1742154638413,-39487.0,0.00030329,2]
[356263458,1742154638423,-151.0,0.00030359,7]
[356263460,1742154638433,-151.868336,0.00030359,7]
[356263462,1742154638442,-151.0,0.00030359,7]
[356263464,1742154638452,-151.0,0.00030359,7]
[356263466,1742154638461,-151.0,0.00030359,7]
[356263468,1742154638471,-699.89,0.00030359,2]
[356263470,1742154638480,-151.0,0.00030362,7]
[356263472,1742154638493,-151.0,0.00030362,7]
[356263473,1742154638502,-151.0,0.00030362,7]
[356263475,1742154638512,-151.0,0.00030362,7]
[356263477,1742154638521,-151.0,0.00030362,7]
[356263479,1742154638531,-151.0,0.00030362,7]
[356263481,1742154638540,-151.0,0.00030362,7]
[356263483,1742154638549,-151.0,0.00030362,7]
[356263485,1742154638558,-433380.25726947,0.00030363,30]
[356263511,1742154639704,-491.47098,0.00021266,2]
[356263512,1742154639739,-508.52902,0.00021266,2]
[356263513,1742154639749,-345.72055361,0.00023925,2]
[356263514,1742154639794,-531.45479491,0.00023925,2]
[356263531,1742154643885,-122.82465148,0.00023925,2]
[356263532,1742154643894,-1000.0,0.00026583,2]
[356263533,1742154643904,-1000.0,0.00029241,2]
[356263534,1742154643914,-2119.42534852,0.00030363,30]
[356263535,1742154643926,-2660.54076824,0.00030363,30]
[356263536,1742154645435,-471.5913,0.00030363,30]
[356263537,1742154645696,-10369.07289537,0.00030363,30]
[356263587,1742155831648,-250.0,0.00019,2]
[356263588,1742155831659,-150.0,0.000209,2]
[356263589,1742155831668,-150.0,0.000219,2]
[356263590,1742155831678,-150.0,0.00024649,2]
[356263591,1742155831689,-24.0,0.00024799,2]
[356263592,1742155831755,-195.31300733,0.00024799,2]
[356263593,1742155831764,-158.57,0.00026849,2]
[356263594,1742155831774,-945.65,0.00027733,2]
[356263595,1742155831783,-51.31176267,0.00027873,2]
[356263596,1742155831795,-148.51583894,0.00027873,2]
[356263597,1742155831804,-500.0,0.00027973,2]
[356263598,1742155831814,-172.39,0.00029067,2]
[356263599,1742155831823,-600.0,0.000294,10]
[356263600,1742155831833,-150.0,0.00029495,7]
[356263601,1742155831843,-185.81328324,0.00029499,2]
[356263602,1742155831855,-2955.89200113,0.00029499,2]
[356263603,1742155831866,-2955.50268388,0.00029499,2]
[356263714,1742155837506,-929.41239997,0.00029499,2]
[356263716,1742155837518,-16873.37963178,0.00029499,2]
[356263718,1742155837528,-1200.0,0.000295,10]
[356263719,1742155837537,-1800.0,0.000296,10]
[356263720,1742155837548,-2400.0,0.000297,10]
[356263721,1742155837557,-3000.0,0.000298,10]
[356263722,1742155837567,-600.0,0.000299,10]
[356263723,1742155837576,-205.41712184,0.000299,5]
[356263724,1742155837586,-945.65,0.00029997,2]
[356263725,1742155837596,-638.03707102,0.0003006,2]
[356263726,1742155837606,-200.0,0.00030137,60]
[356263727,1742155837619,-158.78591466,0.00030262,2]
[356263728,1742155837628,-150.0,0.00030264,2]
[356263729,1742155837640,-299.99,0.00030265,12]
[356263730,1742155837650,-199.82760161,0.00030265,2]
[356263731,1742155837660,-9464.34088564,0.00030265,2]
[356263732,1742155837670,-784.35187012,0.00030265,2]
[356263733,1742155837680,-1769.9121,0.00030265,2]
[356263734,1742155837690,-709.82,0.00030359,2]
[356263735,1742155837700,-264.01312,0.00030359,46]
[356263736,1742155837710,-151.0,0.00030363,7]
[356263737,1742155837719,-152.001912,0.00030363,7]
[356263738,1742155837729,-262.088,0.00030363,25]
[356263739,1742155837739,-200.0,0.00030363,2]
[356263740,1742155837748,-1000.0,0.00030364,6]
[356263741,1742155837757,-200.09122626,0.00030364,2]
[356263742,1742155837767,-993012.75081462,0.00030365,30]
[356263743,1742155837778,-468.0,0.00030365,30]
[356263744,1742155837790,-14739.33754954,0.00030365,30]